fUST/lending_fUST_20250825
["ID","MTS","AMOUNT","RATE_DAILY","PERIOD"]
[381135628,1756066238967,-2879.74,0.000413,7]
[381135629,1756066238977,-783.027378,0.00041404,2]
[381135630,1756066238986,-244.63343042,0.00041761,28]
[381135631,1756066238996,-500.0,0.00041838,30]
[381135632,1756066239005,-500.0,0.00041917,30]
[381135633,1756066239015,-500.0,0.00041987,30]
[381135634,1756066239024,-151.38,0.000422,14]
[381135635,1756066239033,-5289.1,0.000422,14]
[381135636,1756066239043,-155.0,0.00043,120]
[381135637,1756066239052,-151.0,0.000432,14]
[381135638,1756066239061,-761.18657137,0.000437,2]
[381135639,1756066239070,-151.0,0.000448,17]
[381135640,1756066239079,-244.63343042,0.00044976,28]
[381135641,1756066239089,-863.06917217,0.00044983,30]
[381135642,1756066239098,-279.591496,0.00046143,2]
[381135643,1756066239108,-151.0,0.000463,28]
[381135644,1756066239118,-761.18657137,0.000465,2]
[381135645,1756066239127,-155.0,0.00047,120]
[381135646,1756066239137,-199.0,0.00047397,30]
[381135647,1756066239150,-2879.74,0.000474,7]
[381135648,1756066239159,-844.67759735,0.000474,7]
[381135649,1756066239169,-160.0,0.000474,7]
[381135650,1756066239179,-186.78528844,0.00047511,14]
[381135651,1756066239189,-5289.1,0.000476,14]
[381135652,1756066239199,-1194.0379739,0.00047605,120]
[381135653,1756066239209,-647.66914228,0.00047674,8]
[381135654,1756066239218,-8331.8993339,0.000478,10]
[381135655,1756066239228,-33195.8825131,0.0004789,4]
[381135656,1756066239238,-151.0,0.000479,26]
[381135657,1756066239248,-1000.0,0.00047999,120]
[381135658,1756066239258,-199.0,0.00048082,32]
[381135659,1756066239268,-244.63343042,0.00048191,28]
[381135660,1756066239277,-14643.4894267,0.00048228,2]
[381135661,1756066239287,-8331.8993339,0.00048645,10]
[381135662,1756066239298,-417.15472785,0.000487,10]
[381135663,1756066239308,-160.0,0.000487,10]
[381135664,1756066239319,-844.67759735,0.000487,10]
[381135665,1756066239329,-160.0,0.000487,10]
[381135666,1756066239339,-199.0,0.00048767,34]
[381135667,1756066239349,-500.0,0.0004894,60]
[381135668,1756066239362,-1000.0,0.00048979,2]
[381135669,1756066239371,-1000.0,0.00048999,120]
[381135670,1756066239382,-157.0,0.00049,90]
[381135671,1756066239393,-33195.8825131,0.0004919,4]
[381135672,1756066239404,-11135.56557829,0.000492,120]
[381135673,1756066239414,-844.67759735,0.000492,120]
[381135675,1756066239425,-160.0,0.000492,120]
[381135676,1756066239435,-66391.7650263,0.0004929,4]
[381135679,1756066239447,-79790.94217993,0.000493,120]
[381135681,1756066239457,-761.18657137,0.000493,2]
[381135684,1756066239466,-8528.57889961,0.000493,2]
[381135686,1756066239476,-33195.8825131,0.00049305,4]
[381135689,1756066239487,-1000.0,0.00049315,120]
[381135690,1756066239498,-609.32551782,0.00049315,120]
[381135691,1756066239508,-500.0,0.00049315,120]
[381135692,1756066239519,-500.0,0.00049315,120]
[381135693,1756066239529,-500.0,0.00049315,120]
[381135694,1756066239538,-453.90997104,0.00049315,120]
[381135695,1756066239547,-151.0,0.00049315,120]
[381135696,1756066239556,-151.0,0.00049315,120]
[381135697,1756066239565,-151.0,0.00049315,120]
[381135698,1756066239575,-151.0,0.00049315,120]
[381135699,1756066239585,-151.0,0.00049315,120]
[381135700,1756066239595,-151.0,0.00049315,120]
[381135701,1756066239605,-151.0,0.00049315,120]
[381135703,1756066239615,-151.0,0.00049315,14]
[381135705,1756066239626,-500.0,0.00049315,120]
[381135707,1756066239635,-500.0,0.00049315,120]
[381135708,1756066239645,-500.0,0.00049315,120]
[381135709,1756066239655,-500.0,0.00049315,120]
[381135710,1756066239665,-195.75744067,0.00049315,120]
[381135711,1756066239674,-151.0,0.00049315,120]
[381135712,1756066239683,-151.0,0.00049315,120]
[381135713,1756066239693,-151.0,0.00049315,120]
[381135714,1756066239704,-151.0,0.00049315,120]
[381135715,1756066239714,-151.0,0.00049315,120]
[381135717,1756066239724,-151.0,0.00049315,120]
[381135719,1756066239735,-151.0,0.00049315,120]
[381135721,1756066239745,-163.202444,0.00049315,120]
[381135723,1756066239755,-163.202444,0.00049315,120]
[381135725,1756066239766,-163.202444,0.00049315,120]
[381135726,1756066239777,-163.202444,0.00049315,120]
[381135728,1756066239787,-151.0,0.00049315,120]
[381135730,1756066239797,-151.0,0.00049315,120]
[381135731,1756066239808,-151.0,0.00049315,120]
[381135732,1756066239819,-151.0,0.00049315,120]
[381135733,1756066239829,-357.695026,0.00049315,120]
[381135735,1756066239839,-357.695026,0.00049315,120]
[381135737,1756066239849,-357.695026,0.00049315,120]
[381135739,1756066239865,-357.695026,0.00049315,120]
[381135741,1756066239876,-151.0,0.00049315,120]
[381135743,1756066239886,-216.333848,0.00049315,120]
[381135745,1756066239896,-151.0,0.00049315,120]
[381135747,1756066239906,-216.333848,0.00049315,120]
[381135749,1756066239917,-361.897599,0.00049315,120]
[381135751,1756066239926,-151.0,0.00049315,120]
[381135754,1756066239936,-216.333848,0.00049315,120]
[381135756,1756066239946,-361.897599,0.00049315,120]
[381135758,1756066239956,-216.333848,0.00049315,120]
[381135760,1756066239965,-361.897599,0.00049315,120]
[381135762,1756066239975,-361.897599,0.00049315,120]
[381135764,1756066239984,-331.978192,0.00049315,120]
[381135766,1756066239994,-331.978192,0.00049315,120]
[381135768,1756066240003,-331.978192,0.00049315,120]
[381135770,1756066240013,-331.978192,0.00049315,120]
[381135772,1756066240022,-661.768501,0.00049315,120]
[381135774,1756066240032,-154.764557,0.00049315,120]
[381135776,1756066240041,-661.768501,0.00049315,120]
[381135778,1756066240051,-154.764557,0.00049315,120]
[381135780,1756066240061,-661.768501,0.00049315,120]
[381135782,1756066240070,-154.764557,0.00049315,120]
[381135784,1756066240079,-661.768501,0.00049315,120]
[381135786,1756066240088,-154.764557,0.00049315,120]
[381135788,1756066240098,-151.0,0.00049315,120]
[381135790,1756066240110,-623.154233,0.00049315,30]
[381135791,1756066240119,-623.154233,0.00049315,30]
[381135792,1756066240128,-151.0,0.00049315,120]
[381135793,1756066240138,-623.154233,0.00049315,30]
[381135794,1756066240147,-623.154233,0.00049315,30]
[381135795,1756066240157,-151.0,0.00049315,120]
[381135796,1756066240166,-151.0,0.00049315,120]
[381135797,1756066240176,-151.0,0.00049315,120]
[381135798,1756066240186,-151.0,0.00049315,120]
[381135799,1756066240196,-151.0,0.00049315,120]
[381135800,1756066240206,-151.0,0.00049315,120]
[381135801,1756066240215,-151.0,0.00049315,120]
[381135802,1756066240225,-151.0,0.00049315,120]
[381135803,1756066240235,-151.0,0.00049315,120]
[381135804,1756066240244,-151.0,0.00049315,120]
[381135805,1756066240254,-151.0,0.00049315,120]
[381135806,1756066240263,-151.0,0.00049315,120]
[381135807,1756066240273,-151.0,0.00049315,120]
[381135808,1756066240282,-151.0,0.00049315,120]
[381135809,1756066240292,-151.0,0.00049315,120]
[381135810,1756066240302,-204.281151,0.00049315,15]
[381135811,1756066240311,-151.0,0.00049315,120]
[381135812,1756066240321,-204.281151,0.00049315,15]
[381135813,1756066240331,-151.0,0.00049315,120]
[381135814,1756066240341,-204.281151,0.00049315,15]
[381135815,1756066240350,-151.0,0.00049315,120]
[381135816,1756066240364,-204.281151,0.00049315,15]
[381135817,1756066240374,-151.0,0.00049315,120]
[381135818,1756066240383,-7792.67,0.00049315,120]
[381135819,1756066240394,-7792.67,0.00049315,120]
[381135820,1756066240404,-7792.67,0.00049315,120]
[381135821,1756066240413,-7792.67,0.00049315,120]
[381135822,1756066240425,-191.158521,0.00049315,120]
[381135823,1756066240435,-7792.67,0.00049315,120]
[381135824,1756066240445,-7792.67,0.00049315,120]
[381135825,1756066240454,-7792.67,0.00049315,120]
[381135826,1756066240463,-7792.67,0.00049315,120]
[381135827,1756066240472,-7792.67,0.00049315,120]
[381135828,1756066240482,-7792.67,0.00049315,120]
[381135829,1756066240491,-7792.67,0.00049315,120]
[381135830,1756066240501,-7792.67,0.00049315,120]
[381135831,1756066240511,-7792.67,0.00049315,120]
[381135832,1756066240520,-7792.67,0.00049315,120]
[381135833,1756066240529,-7792.67,0.00049315,120]
[381135834,1756066240538,-7792.67,0.00049315,120]
[381135835,1756066240547,-7792.67,0.00049315,120]
[381135836,1756066240556,-7792.67,0.00049315,120]
[381135837,1756066240566,-7792.67,0.00049315,120]
[381135838,1756066240576,-7792.67,0.00049315,120]
[381135839,1756066240585,-7792.67,0.00049315,120]
[381135840,1756066240595,-7792.67,0.00049315,120]
[381135841,1756066240604,-7792.67,0.00049315,120]
[381135842,1756066240616,-7792.75,0.00049315,120]
[381135843,1756066240626,-151.0,0.00049315,120]
[381135844,1756066240635,-151.0,0.00049315,120]
[381135845,1756066240645,-262.40649,0.00049315,120]
[381135846,1756066240654,-631.924603,0.00049315,120]
[381135847,1756066240663,-631.924603,0.00049315,120]
[381135848,1756066240673,-151.0,0.00049315,120]
[381135849,1756066240682,-235.432676,0.00049315,120]
[381135850,1756066240691,-631.924603,0.00049315,120]
[381135851,1756066240700,-151.0,0.00049315,120]
[381135852,1756066240709,-235.432676,0.00049315,120]
[381135853,1756066240718,-631.924603,0.00049315,120]
[381135854,1756066240727,-151.0,0.00049315,120]
[381135855,1756066240736,-235.432676,0.00049315,120]
[381135856,1756066240746,-262.40649,0.00049315,120]
[381135857,1756066240755,-151.0,0.00049315,120]
[381135858,1756066240764,-235.432676,0.00049315,120]
[381135859,1756066240773,-300.0,0.00049315,120]
[381135860,1756066240783,-278.89879357,0.00049373,7]
[381135861,1756066240792,-151.0,0.0004939,120]
[381135862,1756066240802,-151.0,0.0004939,120]
[381135863,1756066240811,-151.0,0.0004939,30]
[381135864,1756066240821,-200.0,0.00049399,60]
[381135865,1756066240831,-54795.67726097,0.000494,120]
[381135866,1756066240845,-99542.1675808,0.000494,120]
[381135867,1756066240859,-2804.36494492,0.000494,120]
[381135868,1756066240870,-1318.02139591,0.000494,120]
[381135878,1756066242629,-199.0,0.0003389,120]
[381135879,1756066242639,-262.40649,0.00049315,120]
[381135880,1756066242649,-262.40649,0.00049315,120]
[381135881,1756066242659,-228955.653058,0.000494,120]
[381135883,1756066242671,-9809.188145,0.000494,120]
[381135884,1756066242682,-2240.0,0.000494,120]
[381135885,1756066242702,-12017.75,0.000494,120]
[381135930,1756066243584,-163.04459244,0.00028332,95]
[381135931,1756066243595,-2829.44440746,0.000494,120]
[381135933,1756066243629,-12500.302046,0.000494,120]
[381136055,1756066246068,-23799.99999981,0.00049215,120]
[381136056,1756066246133,-55990.94218012,0.00049215,120]
[381136057,1756066246143,-151.0,0.00049315,120]
[381136058,1756066246152,-151.0,0.00049315,120]
[381136059,1756066246161,-151.0,0.00049315,120]
[381136060,1756066246170,-70817.46390793,0.000494,120]
[381136061,1756066246182,-27878.87828881,0.000494,120]
[381136124,1756066293502,203.26068816,0.0002249,2]
[381136125,1756066293635,203.26068816,0.00024216,2]
[381136126,1756066293690,203.26068816,0.00025943,4]
[381136127,1756066293749,203.26068816,0.00027669,8]
[381136131,1756066548071,238.950661,0.00013699,2]
[381136132,1756066548554,238.950661,0.00020187,2]
[381136133,1756066548979,238.950661,0.00026676,2]
[381136134,1756066601960,1665.75833466,0.000279,2]
[381136137,1756066702205,160.0,0.000253,2]
[381136138,1756066702566,300.0,0.00025848,2]
[381137068,1756067112314,5000.0,0.000279,2]
[381137069,1756067127435,3030.6517042,0.000279,2]
[381137090,1756067210727,347.66557496,0.0002249,2]
[381137091,1756067210775,347.66557496,0.00024216,2]
[381137092,1756067210828,347.66557496,0.00025943,4]
[381137093,1756067210892,347.66557496,0.00027669,8]
[381137094,1756067211050,521.49836257,0.00025943,4]
[381137097,1756067324283,13736.24193987,0.000277,2]
[381137098,1756067326416,150.99999967,0.00030609,120]
[381137099,1756067329420,150.999999,0.00025,5]
[381137123,1756067396405,370.84327984,0.00020763,2]
[381137124,1756067396672,324.48787008,0.0002249,2]
[381137185,1756067432237,-731.82974463,0.00028728,2]
[381137186,1756067432248,-643.17025537,0.00028728,2]
[381137198,1756067437959,-14522.1243987,0.00028728,2]
[381137199,1756067437969,-199.27492077,0.00028729,2]
[381137200,1756067437979,-470.25742958,0.00028829,2]
[381137201,1756067437990,-622.482257,0.00028883,2]
[381137202,1756067438000,-1000.0,0.00028929,30]
[381137203,1756067438010,-844.67759735,0.00029,10]
[381137204,1756067438019,-559.30527,0.00029123,2]
[381137205,1756067438029,-199.27492077,0.00029376,2]
[381137206,1756067438040,-199.27492077,0.00030022,2]
[381137207,1756067438049,-400.0,0.00030121,2]
[381137208,1756067438059,-1200.0,0.00030121,2]
[381137209,1756067438070,-10000.0,0.00030122,2]
[381137210,1756067438079,-500.0,0.00030408,2]
[381137211,1756067438095,-500.0,0.00030408,2]
[381137212,1756067438105,-217.8548213,0.00030408,2]
[381137213,1756067438114,-844.67759735,0.00030409,7]
[381137214,1756067438124,-376.22310801,0.00030409,7]
[381137215,1756067438133,-11135.56557829,0.00030409,7]
[381137216,1756067438143,-666.0,0.00030453,2]
[381137217,1756067438153,-8528.57889961,0.00030509,2]
[381137218,1756067438162,-3079.0,0.00030599,3]
[381137219,1756067438172,-1539.5,0.00030599,3]
[381137220,1756067438182,-822.75,0.00030599,3]
[381137221,1756067438192,-411.38,0.00030599,3]
[381137222,1756067438201,-205.69,0.00030599,3]
[381137223,1756067438210,-617.07,0.00030599,3]
[381137224,1756067438220,-151.0,0.000306,18]
[381137225,1756067438230,-151.0,0.000306,10]
[381137226,1756067438239,-151.0,0.000306,20]
[381137227,1756067438249,-151.0,0.000306,18]
[381137228,1756067438259,-2963.95784121,0.000306,2]
[381137229,1756067438268,-1272.16737975,0.00030608,2]
[381137230,1756067438278,-1272.16737975,0.00030608,2]
[381137231,1756067438287,-1272.16737975,0.00030608,2]
[381137232,1756067438297,-1272.16737975,0.00030608,2]
[381137233,1756067438306,-1272.16737975,0.00030608,2]
[381137234,1756067438316,-1272.16737975,0.00030608,2]
[381137235,1756067438325,-1272.16737975,0.00030608,2]
[381137236,1756067438337,-1272.16737975,0.00030608,2]
[381137237,1756067438347,-1272.16737975,0.00030608,2]
[381137238,1756067438357,-1272.16737975,0.00030608,2]
[381137239,1756067438366,-1272.16737975,0.00030608,2]
[381137240,1756067438381,-1272.16737975,0.00030608,2]
[381137241,1756067438390,-1272.16737975,0.00030608,2]
[381137242,1756067438400,-1272.16737975,0.00030608,2]
[381137243,1756067438410,-1272.16737975,0.00030608,2]
[381137244,1756067438419,-1015.09662232,0.00030608,2]
[381137245,1756067438432,-257.07075743,0.00030608,2]
[381137246,1756067438442,-88903.98187042,0.00030609,20]
[381137247,1756067438462,-1267292.48068241,0.00030609,20]
[381137248,1756067438475,-99542.1675808,0.00030609,20]
[381137249,1756067438486,-25933.18436161,0.00030609,20]
[381137250,1756067438498,-899.8865546,0.00030609,20]
[381137252,1756067439946,-11289.0,0.00030609,20]
[381137253,1756067440003,-2535.39357005,0.00030609,2]
[381137254,1756067440012,-683.57143584,0.00030609,20]
[381137255,1756067440024,-271.35708111,0.00030609,20]
[381137284,1756067443209,-199.0,0.00028829,30]
[381137285,1756067443219,-169226.0,0.00030609,20]
[381137286,1756067443231,-659.0834951,0.00030609,20]
[381137341,1756067446151,-2758.43031779,0.00030609,20]
[381137354,1756067446259,-3000.0,0.00030609,20]
[381137356,1756067446270,-1128.294,0.00030609,20]
[381137447,1756067453538,199.0,0.00026749,20]
[381137448,1756067462345,199.0,0.00026749,20]
[381137449,1756067546594,317.330086,0.00013699,2]
[381137450,1756067546883,317.330086,0.00020187,2]
[381137451,1756067547407,317.330086,0.00026676,2]
[381137454,1756067803554,254.66547905,0.00027101,2]
[381137455,1756067848933,28195.1240981,0.00027526,2]
[381137456,1756067869253,380.0,0.00027526,2]
[381137458,1756067966861,4243.2297292,0.00027516,2]
[381137459,1756067977110,480.0,0.00030585,30]
[381137463,1756068006888,666.0,0.00027516,2]
[381137466,1756068123500,965.89550994,0.00026972,2]
[381137467,1756068138589,10000.0,0.00027486,2]
[381137468,1756068185075,1248.28683539,0.000253,2]
[381137469,1756068208411,150.07,0.0002785,15]
[381137471,1756068335693,671.166324,0.00027306,2]
[381137472,1756068355289,548.134039,0.00027316,2]
[381137473,1756068432117,-150.07,0.0002795,15]
[381137474,1756068432138,-150.07,0.0002805,15]
[381137475,1756068432162,-150.07,0.0002815,15]
[381137476,1756068432182,-150.07,0.0002825,15]
[381137477,1756068432202,-150.07,0.0002835,15]
[381137478,1756068432222,-931.14743874,0.00028413,2]
[381137479,1756068432241,-2525.29134078,0.00028473,2]
[381137480,1756068432261,-300.0,0.00028504,2]
[381137481,1756068432280,-1200.0,0.00028505,2]
[381137482,1756068432300,-300.0,0.00028506,2]
[381137483,1756068432319,-300.0,0.00028506,2]
[381137484,1756068432338,-300.0,0.00028506,2]
[381137485,1756068432357,-1200.0,0.00028506,2]
[381137486,1756068432377,-300.0,0.00028506,2]
[381137487,1756068432397,-500.0,0.00028506,2]
[381137488,1756068432420,-628.839,0.00028506,2]
[381137489,1756068432441,-500.0,0.00028506,2]
[381137490,1756068432461,-500.0,0.00028506,2]
[381137491,1756068432480,-500.0,0.00028506,2]
[381137492,1756068432501,-500.0,0.00028506,2]
[381137493,1756068432521,-500.0,0.00028506,2]
[381137494,1756068432542,-500.0,0.00028506,2]
[381137495,1756068432562,-500.0,0.00028506,2]
[381137496,1756068432582,-500.0,0.00028506,2]
[381137497,1756068432602,-500.0,0.00028506,2]
[381137498,1756068432624,-500.0,0.00028506,2]
[381137499,1756068432643,-500.0,0.00028506,2]
[381137500,1756068432667,-500.0,0.00028506,2]
[381137501,1756068432686,-500.0,0.00028506,2]
[381137502,1756068432706,-500.0,0.00028506,2]
[381137503,1756068432726,-500.0,0.00028506,2]
[381137504,1756068432747,-500.0,0.00028506,2]
[381137505,1756068432766,-34.12891264,0.00028506,2]
[381137506,1756068505239,200.29767262,0.0002249,2]
[381137507,1756068505495,200.29767262,0.00024216,2]
[381137508,1756068505820,200.29767262,0.00027669,8]
[381137509,1756068505881,200.29767262,0.00025943,4]
[381137510,1756068508062,324.074455,0.00013699,2]
[381137511,1756068508382,324.074455,0.00020187,2]
[381137512,1756068508609,324.074455,0.00026676,2]
[381137514,1756068573823,1202.0,0.000279,2]
[381137515,1756068590921,156.29,0.00027851,15]
[381137516,1756068606939,8930.9355899,0.00027577,2]
[381137656,1756068635164,-156.29,0.00027951,15]
[381137657,1756068635174,-156.29,0.00028051,15]
[381137658,1756068635184,-156.32,0.00028151,15]
[381137659,1756068635194,-779.38683539,0.00028405,2]
[381137660,1756068635222,-35.36717356,0.00028405,2]
[381137661,1756068635231,-2020.2330726,0.00028417,2]
[381137662,1756068635241,-1117.0,0.00028499,2]
[381137663,1756068635251,-3000.0,0.000285,2]
[381137664,1756068635260,-39.98471107,0.00028503,2]
[381137665,1756068635272,-260.01528893,0.00028503,2]
[381137666,1756068635282,-300.0,0.00028503,2]
[381137667,1756068635292,-500.0,0.00028504,2]
[381137668,1756068635301,-500.0,0.00028504,2]
[381137670,1756068635311,-613.36978634,0.00028504,2]
[381137671,1756068635320,-500.0,0.00028504,2]
[381137672,1756068635330,-500.0,0.00028504,2]
[381137673,1756068635339,-500.0,0.00028504,2]
[381137675,1756068635348,-500.0,0.00028504,2]
[381137677,1756068635358,-500.0,0.00028504,2]
[381137678,1756068635367,-500.0,0.00028504,2]
[381137679,1756068635376,-230.14934126,0.00028504,2]
[381137680,1756068635385,-500.0,0.00028504,2]
[381137681,1756068635394,-500.0,0.00028504,2]
[381137682,1756068635403,-500.0,0.00028504,2]
[381137683,1756068635412,-500.0,0.00028504,2]
[381137684,1756068635422,-365.85078944,0.00028504,2]
[381137685,1756068635431,-500.0,0.00028504,2]
[381137686,1756068635441,-500.0,0.00028504,2]
[381137687,1756068635450,-600.06878449,0.00028504,2]
[381137688,1756068635459,-500.0,0.00028504,2]
[381137689,1756068635468,-500.0,0.00028504,2]
[381137690,1756068635478,-500.0,0.00028504,2]
[381137691,1756068635487,-500.0,0.00028504,2]
[381137692,1756068635497,-500.0,0.00028504,2]
[381137693,1756068635506,-500.0,0.00028504,2]
[381137694,1756068635515,-500.0,0.00028504,2]
[381137695,1756068635524,-500.0,0.00028504,2]
[381137696,1756068635534,-500.0,0.00028504,2]
[381137697,1756068635543,-500.0,0.00028504,2]
[381137698,1756068635553,-500.0,0.00028504,2]
[381137699,1756068635562,-500.0,0.00028504,2]
[381137700,1756068635571,-500.0,0.00028504,2]
[381137701,1756068635582,-500.0,0.00028504,2]
[381137702,1756068635590,-500.0,0.00028504,2]
[381137703,1756068635600,-500.0,0.00028504,2]
[381137704,1756068635609,-500.0,0.00028504,2]
[381137705,1756068635619,-500.0,0.00028504,2]
[381137706,1756068635628,-500.0,0.00028504,2]
[381137707,1756068635637,-500.0,0.00028504,2]
[381137708,1756068635646,-500.0,0.00028504,2]
[381137709,1756068635656,-500.0,0.00028504,2]
[381137710,1756068635665,-500.0,0.00028504,2]
[381137711,1756068635674,-500.0,0.00028504,2]
[381137712,1756068635684,-500.0,0.00028504,2]
[381137713,1756068635693,-500.0,0.00028504,2]
[381137714,1756068635703,-370.33765491,0.00028504,2]
[381137715,1756068635712,-292.44773907,0.00028504,2]
[381137765,1756068638298,-207.55226093,0.00028504,2]
[381137767,1756068638308,-500.0,0.00028504,2]
[381137769,1756068638318,-500.0,0.00028504,2]
[381137771,1756068638327,-132.25120545,0.00028504,2]
[381137774,1756068638355,-366.94844569,0.00028504,2]
[381137777,1756068638412,-0.80034886,0.00028504,2]
[381137778,1756068638422,-500.0,0.00028504,2]
[381137779,1756068638432,-500.0,0.00028504,2]
[381137780,1756068638442,-500.0,0.00028504,2]
[381137781,1756068638451,-500.0,0.00028504,2]
[381137782,1756068638461,-500.0,0.00028504,2]
[381137783,1756068638471,-500.0,0.00028504,2]
[381137784,1756068638480,-161.90406933,0.00028504,2]
[381137785,1756068638489,-500.0,0.00028504,2]
[381137786,1756068638499,-500.0,0.00028504,2]
[381137788,1756068638508,-500.0,0.00028504,2]
[381137790,1756068638518,-500.0,0.00028504,2]
[381137791,1756068638527,-500.0,0.00028504,2]
[381137792,1756068638536,-500.0,0.00028504,2]
[381137793,1756068638545,-500.0,0.00028504,2]
[381137794,1756068638555,-1824.42241189,0.00028504,2]
[381137795,1756068638565,-18258.37831198,0.00028505,2]
[381137796,1756068638574,-6032.09,0.00028507,3]
[381137797,1756068638583,-3016.04,0.00028507,3]
[381137798,1756068638594,-1508.02,0.00028507,3]
[381137799,1756068638603,-754.01,0.00028507,3]
[381137800,1756068638613,-377.01,0.00028507,3]
[381137801,1756068638623,-188.5,0.00028507,3]
[381137802,1756068638632,-565.53,0.00028507,3]
[381137803,1756068638642,-194.1,0.00028507,3]
[381137804,1756068638651,-161.75,0.00028507,3]
[381137805,1756068638661,-485.25,0.00028507,3]
[381137806,1756068638671,-160.0,0.00028507,3]
[381137807,1756068638680,-376.22310801,0.00028507,3]
[381137808,1756068638689,-844.67759735,0.00028507,3]
[381137809,1756068638699,-3648.84482378,0.00028507,2]
[381137810,1756068638708,-537.93466356,0.00028512,2]
[381137811,1756068638717,-1093.66496298,0.00028512,2]
[381137812,1756068638726,-1093.66496298,0.00028512,2]
[381137813,1756068638736,-1093.66496298,0.00028512,2]
[381137814,1756068638745,-1093.66496298,0.00028512,2]
[381137815,1756068638755,-1093.66496298,0.00028512,2]
[381137816,1756068638763,-1093.66496298,0.00028512,2]
[381137817,1756068638773,-1093.66496298,0.00028512,2]
[381137818,1756068638782,-1093.66496298,0.00028512,2]
[381137819,1756068638792,-1093.66496298,0.00028512,2]
[381137820,1756068638801,-1093.66496298,0.00028512,2]
[381137821,1756068638811,-1093.66496298,0.00028512,2]
[381137822,1756068638820,-1093.66496298,0.00028512,2]
[381137823,1756068638829,-1093.66496298,0.00028512,2]
[381137824,1756068638839,-1093.66496298,0.00028512,2]
[381137825,1756068638848,-1093.66496298,0.00028512,2]
[381137826,1756068638858,-1093.66496298,0.00028512,2]
[381137827,1756068638867,-1093.66496298,0.00028512,2]
[381137828,1756068638877,-500.0,0.00028516,2]
[381137829,1756068638886,-1824.42241189,0.00028517,2]
[381137830,1756068638895,-82655.60557663,0.00028527,2]
[381137831,1756068638905,-1824.42241189,0.00028563,2]
[381137832,1756068638915,-500.0,0.00028573,5]
[381137833,1756068638924,-500.0,0.00028573,5]
[381137834,1756068638934,-213.32183273,0.00028573,5]
[381137835,1756068638943,-500.0,0.00028573,5]
[381137836,1756068638953,-500.0,0.00028573,5]
[381137837,1756068638963,-500.0,0.00028573,5]
[381137838,1756068638972,-502.14370261,0.00028573,5]
[381137839,1756068638982,-553.85251724,0.00028573,5]
[381137840,1756068638992,-500.0,0.00028573,5]
[381137841,1756068639001,-500.0,0.00028573,5]
[381137842,1756068639011,-212.49968924,0.00028573,5]
[381137843,1756068639021,-500.0,0.00028573,5]
[381137844,1756068639031,-500.0,0.00028573,5]
[381137845,1756068639043,-500.0,0.00028573,2]
[381137846,1756068639052,-500.74460077,0.00028573,5]
[381137847,1756068639061,-500.0,0.00028573,5]
[381137848,1756068639071,-500.0,0.00028573,5]
[381137849,1756068639082,-500.0,0.00028573,5]
[381137850,1756068639092,-500.0,0.00028573,5]
[381137851,1756068639102,-500.0,0.00028573,5]
[381137852,1756068639113,-296.30444005,0.00028573,5]
[381137853,1756068639123,-500.0,0.00028573,5]
[381137854,1756068639132,-500.0,0.00028573,5]
[381137855,1756068639142,-500.0,0.00028573,5]
[381137856,1756068639152,-500.0,0.00028573,5]
[381137857,1756068639162,-500.0,0.00028573,5]
[381137858,1756068639171,-443.68459065,0.00028573,5]
[381137859,1756068639394,-500.0,0.00028573,5]